Cogmind - Beta 12 @@@ ROGUE MODE // 2023.11.29 @ 13:51:12 Player: drchaos820 Result: Self-destructed Performance ------------- Evolutions (1) 500 Regions Visited (2) 400 Robots Destroyed (15) 75 Value Destroyed (300) 300 Prototype IDs (0) 0 Alien Tech Used (0) 0 Bonus (0) 0 TOTAL SCORE: 1275 Bonus ------- None Cogmind --------- Core Integrity 271/400 Matter 221/300 Energy 100/100 System Corruption 0% Temperature Cool (0) Movement Rolling (100) Location -9/Materials Parts ------- > --- POWER (1) -------- (None) > --- PROPULSION (2) --- Compact Wheel > --- UTILITY (4) ------ Small Storage Unit Improved Terrain Scanner Improved Terrain Scanner Hacking Suite > --- WEAPON (2) ------- Particle Gun > --- INVENTORY (8) ---- Wheel EM Pulse Gun Small Laser Small Laser Particle Gun Assault Rifle Assault Rifle Peak State ------------ > --- POWER ------------ Ion Engine > --- PROPULSION ------- Compact Wheel Compact Wheel > --- UTILITY ---------- Small Storage Unit Improved Terrain Scanner Improved Terrain Scanner Hacking Suite > --- WEAPON ----------- Particle Gun Assault Rifle > --- INVENTORY -------- EM Pulse Gun Small Laser Small Laser Particle Gun Assault Rifle Grenade Launcher [Rating: 16] Favorites ----------- Power Ion Engine Engine Ion Engine Propulsion Compact Wheel Wheel Compact Wheel Utility Small Storage Unit Device Improved Terrain Scanner Storage Small Storage Unit Hackware Hacking Suite Weapon Assault Rifle Energy Gun Particle Gun Ballistic Gun Assault Rifle Launcher Grenade Launcher Special Weapon Welding Torch Build | -11 -10 -9 ------- Run | Jun Mat Mat Slots Evolved 2 | . . 2 Power . | . . . Propulsion . | . . . Utility 2 | . . 2 Weapon . | . . . Parts Attached 16 | 7 5 4 Power 1 | 1 . . Engine 1 | 1 . . Core . | . . . Reactor . | . . . Propulsion 2 | 2 . . Treads . | . . . Leg . | . . . Wheel 2 | 2 . . Hover . | . . . Flight . | . . . Utility 5 | 2 1 2 Device 3 | 1 1 1 Storage 1 | 1 . . Processor . | . . . Hackware 1 | . . 1 Protection . | . . . Artifact . | . . . Weapon 8 | 2 4 2 Energy Gun 3 | . 3 . Energy Cannon . | . . . Ballistic Gun 3 | 2 1 . Ballistic Cannon . | . . . Launcher 1 | . . 1 Special Weapon 1 | . . 1 Impact Weapon . | . . . Slashing Weapon . | . . . Piercing Weapon . | . . . Special Melee Weapon . | . . . Unidentified Prototypes . | . . . Parts Lost 4 | . . 4 Power 1 | . . 1 Propulsion 1 | . . 1 Utility . | . . . Weapon 2 | . . 2 Highest Loss Streak 4 | . . 4 To Critical Strikes . | . . . Average Slot Usage (%) 99 | . 100 97 Engine 13 | . 14 11 Wheel 25 | . 28 20 Device 16 | . 14 20 Storage 13 | . 14 11 Hackware 3 | . . 11 Energy Gun 11 | . 11 11 Ballistic Gun 13 | . 16 8 Naked Turns . | . . . Heaviest Build 17 | 15 17 17 Greatest Support 32 | 32 32 32 Greatest Overweight (x) . | . . . Average Overweight (x) . | . . . Largest Inventory Capacity 8 | 8 8 8 Average Capacity 7 | 7 8 8 Most Carried 8 | 2 7 8 Average Carried 4 | 1 4 7 Final Capacity 8 | 8 8 8 Final Carried 7 | 2 7 7 Class Distribution -------------------- 100% | Mutant Dominant Class ---------------- Mutant | -10/Materials Mutant | -9/Materials Resources | -11 -10 -9 ----------- Run | Jun Mat Mat Matter Collected 520 | 354 131 35 Remotely . | . . . Salvage Created 543 | 136 338 69 Parts 29 | 6 17 6 Haulers Intercepted . | . . . Recyclers Shooed 1 | . 1 . Parts Field Recycled . | . . . Retrieved Matter . | . . . Parts Self-Destructed . | . . . Prevented . | . . . Kills | -11 -10 -9 ------- Run | Jun Mat Mat Combat Hostiles Destroyed 7 | . 6 1 Guns 6 | . 6 . AOE 1 | . . 1 Classes Destroyed 6 | 3 2 1 Worker 2 | 2 . . Builder 1 | . . 1 Tunneler 2 | 1 . 1 Recycler 2 | 1 1 . Operator 1 | . 1 . Grunt 7 | . 6 1 Best Kill Streak 5 | 2 3 5 Combat Bots Only 2 | . 2 1 Max Kills in Single Turn 1 | 1 1 1 Gunslinging . | . . . Exploded 1 | . . 1 Melee . | . . . Uniques/NPCs Destroyed . | . . . Combat | -11 -10 -9 -------- Run | Jun Mat Mat Damage Taken 545 | . 201 344 Core 152 | . 23 129 Absorbed by Shields . | . . . Core Remaining (%) 95 | 100 90 . Volleys Fired 54 | 14 25 15 Largest 2 | 2 2 2 Hottest 130 | 40 130 85 Shots Fired 95 | 28 49 18 Gun 87 | 28 49 10 Cannon . | . . . Launcher 7 | . . 7 Special 1 | . . 1 Kinetic 63 | 28 30 5 Thermal 25 | . 19 6 Explosive 7 | . . 7 Electromagnetic . | . . . Robot Hit Streak 8 | 5 8 4 Robot Miss Streak 4 | 4 1 1 Penetration Max . | . . . Secondary Targets 1 | . 1 . Max Gunslinging Chain 1 | . 1 . Shots Hit Robots 58 | 16 35 7 Core Hits 24 | 5 12 7 Critical Kills . | . . . Critical Parts Destroyed 1 | . 1 . Critical Strikes 2 | . 1 1 Burn 1 | . . 1 Destroy 1 | . 1 . Melee Attacks . | . . . Impact . | . . . Slashing . | . . . Piercing . | . . . Sneak Attacks . | . . . Combat Hostiles . | . . . Follow-up Attacks . | . . . Damage Inflicted 1089 | 208 486 395 Guns 796 | 208 486 102 Cannons . | . . . Explosions 293 | . . 293 Melee . | . . . Ramming . | . . . Kinetic 543 | 208 284 51 Thermal 253 | . 202 51 Explosive 293 | . . 293 Electromagnetic . | . . . Impact . | . . . Slashing . | . . . Piercing . | . . . Highest Corruption . | . . . Average Corruption . | . . . Corruption Purged . | . . . Corruption Blocked . | . . . Overload Shots . | . . . Overflow Damage 11 | . . 11 Projectiles . | . . . Explosions 11 | . . 11 Melee . | . . . Knockbacks . | . . . Impact . | . . . Kinetic . | . . . Secondary . | . . . Self-Inflicted Damage 83 | . . 83 Shots 3 | . . 3 Rammed . | . . . Targets Rammed . | . . . Kicked . | . . . Crushed . | . . . Highest Temperature 439 | 6 439 42 Average Temperature 114 | 6 136 15 Received Heat Transfer 159 | . 111 48 Effects 3 | . 3 . Shutdowns 1 | . 1 . Energy Bleed 1 | . 1 . Short Circuit 1 | . 1 . Siege Activations . | . . . Robots Corrupted . | . . . Combat Hostiles . | . . . Parts Fried . | . . . Impact Corruptions . | . . . Robots Melted . | . . . Combat Hostiles . | . . . Parts Melted 1 | . 1 . Heat Transferred 666 | . 481 185 Parts Sabotaged . | . . . Parts Stolen . | . . . Parts Stripped . | . . . Power Chain Reactions . | . . . Missiles Intercepted . | . . . Alert | -11 -10 -9 ------- Run | Jun Mat Mat Peak Influence 178 | 20 178 138 Initial 74 | . 13 74 Average 60 | 5 80 93 Maximum Alert Level . | . . . Low Security (%) 100 | 100 100 100 Level 1 . | . . . Level 2 . | . . . Level 3 . | . . . Level 4 . | . . . Level 5 . | . . . High Security . | . . . Max Security . | . . . Squads Dispatched 2 | . 2 . Investigation 1 | . 1 . Extermination . | . . . Reinforcement 1 | . 1 . Assault . | . . . Garrison . | . . . Intercept . | . . . Searches Triggered . | . . . Construction Impeded . | . . . Haulers Reinforced . | . . . Active Scanning Responses . | . . . Cargo Convoy Interrupts . | . . . Stealth | -11 -10 -9 --------- Run | Jun Mat Mat Distress Signals . | . . . Communications Jammed . | . . . Distress Signals . | . . . Times Spotted 13 | . 10 3 Peak Tracking Total 3 | . 3 3 Tactical Retreats . | . . . Traps | -11 -10 -9 ------- Run | Jun Mat Mat Traps Triggered . | . . . Indirectly . | . . . Trap Hack Attempts . | . . . Triggered . | . . . Disarmed . | . . . Reprogrammed . | . . . Reused . | . . . Traps Extracted . | . . . Installed . | . . . Triggered . | . . . Machines | -11 -10 -9 ---------- Run | Jun Mat Mat Machines Disabled . | . . . Max in Single Turn . | . . . Machines Repaired . | . . . Machines Sabotaged . | . . . Overloaded Fab Kills . | . . . Hacking | -11 -10 -9 --------- Run | Jun Mat Mat Machines Accessed 2 | . 1 1 Terminals 2 | . 1 1 Fabricators . | . . . Repair Stations . | . . . Recycling Units . | . . . Scanalyzers . | . . . Garrison Access . | . . . Total Hacks 3 | . 2 1 Successful 1 | . . 1 Failed 2 | . 2 . Catastrophic 2 | . 2 . Database Lockouts . | . . . Manual 3 | . 2 1 Terminals 3 | . 2 1 Fabricators . | . . . Repair Stations . | . . . Recycling Units . | . . . Scanalyzers . | . . . Garrison Access . | . . . Terminal Hacks 1 | . . 1 Branch Access Points 1 | . . 1 Fabricator Hacks . | . . . Repair Station Hacks . | . . . Recycling Unit Hacks . | . . . Scanalyzer . | . . . Garrison Access Hacks . | . . . Unauthorized Hacks . | . . . Terminals . | . . . Fabricators . | . . . Repair Stations . | . . . Recycling Units . | . . . Scanalyzers . | . . . Garrison Access . | . . . Data Cores Recovered . | . . . Used . | . . . Hacking Detections 1 | . 1 . Full Trace Events 1 | . 1 . Feedback Events . | . . . Feedback Blocked . | . . . Robot Schematics Acquired . | . . . Robots Built . | . . . Authchips . | . . . Time . | . . . Total Robot Build Rating . | . . . Part Schematics Acquired . | . . . Parts Built . | . . . Authchips . | . . . Time . | . . . Total Part Build Rating . | . . . Parts Repaired . | . . . Time . | . . . Parts Recycled . | . . . Recycled Matter . | . . . Retrieved Matter . | . . . Retrieved Components . | . . . Parts Scanalyzed . | . . . Part Schematics Acquired . | . . . Parts Damaged . | . . . Bothacking | -11 -10 -9 ------------ Run | Jun Mat Mat Used RIF Installer . | . . . Robots Hacked . | . . . Non-combat . | . . . Combat . | . . . Robot Hacks Applied . | . . . Relay Couplers Released . | . . . Fabnet Peak Effective % . | . . . Robots Rewired . | . . . Allies Hacked . | . . . Hacks Repelled . | . . . Allies | -11 -10 -9 -------- Run | Jun Mat Mat Total Allies . | . . . Largest Group . | . . . Highest-Rated Group . | . . . Highest-Rated Ally . | . . . Total Orders . | . . . Ally Attacks . | . . . Total Damage . | . . . Kills . | . . . Allies Corrupted . | . . . Allies Melted . | . . . Intel | -11 -10 -9 ------- Run | Jun Mat Mat Robot Analysis Total . | . . . Derelict Logs Recovered . | . . . Drone Launches . | . . . Drone Recoveries . | . . . Exploration | -11 -10 -9 ------------- Run | Jun Mat Mat Turns Passed 412 | 125 198 89 Spaces Moved 230 | 74 108 48 Core 5 | 5 . . Treads . | . . . Legs . | . . . Wheels 225 | 69 108 48 Hover . | . . . Flight . | . . . Fastest Speed 50 | 50 100 100 Average Speed 98 | 96 100 100 Slowest Speed 100 | 100 100 100 Overloaded Moves . | . . . Propulsion Burnouts . | . . . Robots Hopped . | . . . Cave-ins Triggered . | . . . Exploration Rate (%) 11 | 4 22 8 Regions Visited 2 Branch Regions . Pre-discovered Areas . | . . . Known Exits Taken . | . . . Unknown Exits Taken 2 | 1 1 . Scrap Searched . | . . . Spaces Dug . | . . . Terrain Destroyed 36 | . . 36 Melee . | . . . Projectile . | . . . AOE 36 | . . 36 Terrain Rammed . | . . . Walls Destroyed . | . . . Machines Disabled . | . . . Actions | -11 -10 -9 --------- Run | Jun Mat Mat Total 313 | 96 148 69 Wait 2 | . 2 . Move 228 | 73 107 48 Hop . | . . . Pick Up 11 | 2 7 2 Fast Attach 8 | 7 . 1 Attach 4 | . 2 2 Detach . | . . . Swap 4 | . 3 1 Drop 2 | . 2 . Fire 54 | 14 25 15 Melee . | . . . Ram . | . . . Kick . | . . . Crush . | . . . Escape Stasis . | . . . Rewire . | . . . Trap . | . . . Miscellaneous . | . . . Route ------- -11/Junkyard -10/Materials (discovered 2 exits: *Mat / [*Min]) -9/Materials (discovered 4 exits: Min x2 / Sto x2) History --------- Turn | Location | Event 3 | -11/Junkyard | Discovered new exit (range 16) 126 | -11/Junkyard | Entered Materials 219 | -10/Materials | Discovered new exit (range 16) 314 | -10/Materials | Build established: Mutant 314 | -10/Materials | Discovered new exit (range 3) 324 | -10/Materials | Entered another Materials area 324 | -9/Materials | Evolved 2 slots: Utility x2 368 | -9/Materials | Identified exit to Mines 368 | -9/Materials | Identified exit to Storage 413 | -9/Materials | Self-destructed Last Messages --------------- (77,11) Mines (14,31) Storage (45,28) Storage Map updated. 00386_ K-01 Serf collects debris. 00392_ The unstable cave ceiling collapses. 00395_ G-34 Mercenary destroyed. 00396_ K-01 Serf collects debris. 00403_ Destroyed Imp. Aluminum Leg. 00403_ Grenade Launcher destroyed. 00403_ Destroyed Grenade Launcher. 00404_ K-01 Serf collects debris. 00406_ The unstable cave ceiling collapses. 00406_ Com. Wheel destroyed. 00407_ L-31 Rogue suffers critical hit (Burn). 00409_ K-01 Serf collects debris. 00410_ The unstable cave ceiling collapses. 00411_ Ion Engine destroyed. 00411_ Welding Torch destroyed. 00413_ K-01 Serf collects debris. Map ----- +----------------------------------------------------+ | ?????????????????????????????????????????????????? | | ?????????????????????????????????????????????????? | | ?????????????????????????????????????????????????? | | ?????????????????????????????????????????????????? | | ?????????????????????????????????????????????????? | | ?????????????????????????????????????????????????? | | ?????????????????????????????????????????????????? | | ?????????????????????????????????????????????????? | | ?????????????????????????????????????????????????? | | ??????????????????????????????????????????>??????? | | ?????????????????????????????????????????????????? | | ?????????????????? ?? ???????????????????????????? | | ?????????????????????????????????????????????????? | | ????????????????##???????????????????????????????? | | ?????????????????????????#???????????????????????? | | ?????????????????????????????????????????????????? | | ??????#????????#?????????????????????????????????? | | ??????????????????########????????#??#???????????? | | ??????????????? ??# #???????????????????????? | | ??????????????????#== #???????????????????????? | | ???????????????? #= #???? ??+??? ??????????? | | ??????????????????# #?+###??? ?????????? | | #??????????? ????? = ## ## #??????????? | | ?????????????????????? #??????????? | | ??????################## g + ????????? | | ???????# + @l ! = #??????????? | | ?####### #### ## #??????????? | | ?# # """ #??# # ##???????????? | | ?# # """ #??# # #??????????????? | | ?+ + """ #??# #### #??????????????? | | ?# # "T" #??# #???######??????????????? | | ?# # """ +?? #???????????????????????? | | ?## ## #? #???????????????????????? | | ?## ############ k #??????????#????????????? | | ??# #???????????????????????? | | ??# #########?##########???????????????????????? | | ??# #???????????#?????#????????????????????????? | | ??# #???????#??##??????????????????????????????? | | ### #???????????????#??????????????????????????? | | #??????????????????????????????????????????? | | ##?????????????????????????????????????????? | | ! #?#????????#???????????????????????????????? | | ##%####??????????????????????????????????????????? | | # #?#??????????????????????????????????????????? | | #####????????????????????????????????????????????? | | ??????#??????????????????????????????????????????? | | ?????????????????????????????????????????????????? | | ??????????#??????????????????????????????????????? | | ????#????????????????????????????????????????????? | | ?????????????????????????????????????????????????? | +----------------------------------------------------+ Best States ------------- Heat Dissipation 28 Energy Generation 10 Energy Capacity 250 Matter Stores 300 Matter Capacity 300 Sight Range 16 Terrain Scan Range 16 Terrain Scan Density 10 Evasion (%) 40 Offensive Hacking 10 Item Schematics ----------------- None Robot Schematics ------------------ None Fabricated ------------ Nothing Alien Tech Used ----------------- None Achievements -------------- None Challenges ------------ None Game ------ Seed EnhancedFortressReplicator Manual? 0 Play Time 00:05:07 Cumulative 27.3 hours Start 2023.11.29 @ 13:47:04 End 2023.11.29 @ 13:51:12 Sessions 1 Manual Loads 0 Difficulty Rogue Special Mode None Game No. 40 Rogue 17 Adventurer 23 Explorer 0 Win Type - Total 1 Types 1/0/0/0/0/0/0/0/0 Lore% 46 Gallery% 42 Achievement% 41 Wizard Run 0 Options --------- ASCII 0 Keyboard 0 Movement Mouse Keybinds 0 Fullscreen 2 Font 18/Terminus Map View 76x50 Tactical HUD 1 Map Filters NONE Filters NONE Steam 1 RUN: 0e54b616-f45f-455d-a28f-f4bcfbc80bda